bitfinex-derivatives/quotes_SOLF0:USTF0_20250705
["timestamp","ask_amount","ask_price","bid_price","bid_amount"]
[1751754123153,20.37657504,147.3,147.29,194.32]
[1751754123570,6.7876,147.29,147.27,45.86]
[1751754123761,6.7876,147.29,147.28,194.32]
[1751754123966,15.64622423,147.29,147.28,194.32]
[1751754124166,6.7881,147.28,147.27,45.86]
[1751754124362,18.0059753,147.28,147.27,240.2]
[1751754125055,18.0059753,147.28,147.27,45.86]
[1751754125962,6.7886,147.27,147.24,588.53925107]
[1751754126170,6.7886,147.27,147.26,194.38]
[1751754126863,6.7886,147.27,147.25,194.38]
[1751754128661,6.7886,147.27,147.25,6.7894]
[1751754128862,6.7886,147.27,147.26,194.38]
[1751754129269,9.14765107,147.28,147.26,194.38]
[1751754130569,6.7886,147.27,147.26,194.38]
[1751754131270,6.7891,147.26,147.24,595.32905107]
[1751754131469,6.7891,147.26,147.25,194.36]
[1751754132266,6.7887,147.27,147.25,194.36]
[1751754132672,6.7887,147.27,147.25,194.38]
[1751754135170,6.7887,147.27,147.24,6.7898]
[1751754135471,6.7887,147.27,147.25,194.38]
[1751754137172,6.7887,147.27,147.25,201.1695]
[1751754137374,9.50495341,147.32,147.25,196.73925107]
[1751754137563,2.35925107,147.3,147.26,2.35925107]
[1751754137766,4.53201532,147.29,147.26,9.14795107]
[1751754137971,6.7877,147.29,147.26,9.14795107]
[1751754138370,2.35925107,147.3,147.28,6.7881]
[1751754138668,2.35925107,147.32,147.28,6.7881]
[1751754138973,13.31736308,147.31,147.29,6.7874]
[1751754139165,9.14565107,147.32,147.29,6.7874]
[1751754139365,13.31648085,147.31,147.29,6.7874]
[1751754139575,9.14565107,147.32,147.29,6.7874]
[1751754139775,13.31727964,147.31,147.29,6.7874]
[1751754139967,9.14565107,147.32,147.29,6.7874]
[1751754140168,4.53057313,147.31,147.29,6.7874]
[1751754140467,9.14565107,147.32,147.29,6.7874]
[1751754140662,13.31663883,147.31,147.29,6.7874]
[1751754140865,9.14565107,147.32,147.29,6.7874]
[1751754141073,4.53030841,147.31,147.29,6.7874]
[1751754141275,9.14565107,147.32,147.29,6.7874]
[1751754141572,13.3166381,147.31,147.29,6.7874]
[1751754141764,9.14565107,147.32,147.29,6.7874]
[1751754141965,13.3166381,147.31,147.29,6.7874]
[1751754142265,9.14565107,147.32,147.29,6.7874]
[1751754142464,13.34379673,147.31,147.29,6.7874]
[1751754142666,9.14565107,147.32,147.29,6.7874]
[1751754142870,13.34379673,147.31,147.29,6.7874]
[1751754143073,9.14565107,147.32,147.29,6.7874]
[1751754143374,13.37027244,147.31,147.29,6.7874]
[1751754143676,9.14565107,147.32,147.29,6.7874]
[1751754143874,13.370933,147.31,147.29,6.7874]
[1751754144169,6.7867,147.31,147.29,6.7874]
[1751754144874,6.7867,147.31,147.28,203.58715107]
[1751754147476,6.7867,147.31,147.28,196.79925107]
[1751754147678,6.7873,147.3,147.28,194.44]
[1751754153590,6.7876,147.29,147.28,194.44]
[1751754153781,2.35925107,147.29,147.27,45.92]
[1751754154086,6.93392687,147.28,147.27,45.92]
[1751754154588,13.72202687,147.28,147.27,45.92]
[1751754154883,22.54370535,147.28,147.27,45.92]
[1751754158382,27.42999322,147.28,147.27,45.92]
[1751754164585,29.71262599,147.28,147.27,45.92]
[1751754166098,20.18445428,147.28,147.27,45.92]
[1751754168801,15.60977848,147.28,147.27,45.92]
[1751754169096,20.156714,147.28,147.27,45.92]
[1751754171194,13.368614,147.28,147.27,45.92]
[1751754171395,8.82167848,147.28,147.27,45.92]
[1751754174801,18.22723569,147.28,147.27,45.92]
[1751754175002,18.22845189,147.28,147.27,45.92]
[1751754181111,18.22845189,147.28,147.27,55.06785107]
[1751754181313,2.35925107,147.31,147.27,48.27925107]
[1751754181610,13.38851246,147.3,147.28,2.35925107]
[1751754181904,6.7869,147.31,147.29,194.32]
[1751754182108,8.83489946,147.3,147.29,194.32]
[1751754182404,13.39859764,147.3,147.29,194.32]
[1751754183197,13.40793834,147.3,147.29,194.32]
[1751754183506,13.40793834,147.3,147.29,201.1076]
[1751754184006,8.84424016,147.3,147.29,201.1076]
[1751754184206,8.84424016,147.3,147.29,203.46685107]
[1751754184910,8.84424016,147.3,147.29,201.1076]
[1751754188814,8.84424016,147.3,147.29,203.46685107]
[1751754189015,11.87764176,147.34,147.3,6.7868]
[1751754189016,2.35925107,147.34,147.3,6.7868]
[1751754189313,25.08550062,147.33,147.3,6.7868]
[1751754189518,13.41281268,147.32,147.3,6.7868]
[1751754189717,8.85036623,147.31,147.3,6.7868]
[1751754200929,15.63716623,147.31,147.29,203.46675107]
[1751754201128,2.35925107,147.31,147.29,194.32]
[1751754201329,8.85141531,147.3,147.29,194.32]
[1751754203331,17.99786638,147.3,147.27,52.7084]
[1751754203534,9.14645107,147.3,147.28,194.26]
[1751754205027,9.14645107,147.3,147.27,246.9684]
[1751754205422,6.7877,147.29,147.27,52.7084]
[1751754205620,6.7877,147.29,147.27,246.9684]
[1751754206036,6.7877,147.29,147.27,240.18]
[1751754207827,17.97217939,147.28,147.27,45.92]
[1751754208036,22.56667089,147.28,147.27,45.92]
[1751754217441,22.51324142,147.28,147.27,45.92]
[1751754217744,15.72514142,147.28,147.27,45.92]
[1751754217948,13.36589035,147.28,147.27,45.92]
[1751754225051,20.15399035,147.28,147.27,45.92]
[1751754227353,13.36589035,147.28,147.27,45.92]
[1751754227553,8.82482832,147.28,147.27,48.27925107]
[1751754228245,8.82482832,147.28,147.27,55.06785107]
[1751754229152,8.82482832,147.28,147.27,52.7086]
[1751754239960,8.82482832,147.28,147.27,45.92]
[1751754240362,13.38217171,147.28,147.27,45.92]
[1751754240555,13.38425658,147.28,147.27,45.92]
[1751754241755,13.38425658,147.28,147.27,52.7086]
[1751754242866,13.38425658,147.28,147.27,45.92]
[1751754243667,20.17235658,147.28,147.27,45.92]
[1751754243866,22.53160765,147.28,147.27,45.92]
[1751754244054,20.6297565,147.28,147.26,194.28]
[1751754244263,20.6297565,147.27,147.26,194.28]
[1751754245262,20.56002448,147.27,147.26,194.28]
[1751754245657,27.34882448,147.27,147.26,194.28]
[1751754246068,22.79148109,147.27,147.26,194.28]
[1751754246367,27.36383242,147.27,147.26,194.28]
[1751754246668,27.36383242,147.27,147.24,9.14885107]
[1751754246861,8.82691319,147.26,147.25,194.28]
[1751754247061,8.82691319,147.26,147.25,201.0695]
[1751754248973,8.82691319,147.26,147.25,203.42875107]
[1751754249268,11.87609797,147.31,147.27,6.7884]
[1751754249468,20.56003349,147.3,147.28,194.28]
[1751754249770,18.27171478,147.29,147.28,194.28]
[1751754255074,18.28187772,147.29,147.28,194.28]
[1751754255274,13.39224311,147.29,147.28,194.28]
[1751754261788,8.81925887,147.29,147.28,194.28]
[1751754263590,15.60685887,147.29,147.28,194.28]
[1751754264892,20.6545576,147.29,147.28,194.28]
[1751754265089,30.52781241,147.29,147.28,194.28]
[1751754266190,25.54282453,147.29,147.28,194.28]
[1751754266388,30.5524963,147.29,147.28,194.28]
[1751754266991,6.7883,147.28,147.26,45.88]
[1751754267194,16.5173783,147.27,147.26,240.14]
[1751754270193,23.3059783,147.27,147.26,240.14]
[1751754275401,23.29560496,147.27,147.26,240.14]
[1751754275901,16.50700496,147.27,147.26,240.14]
[1751754276703,16.50700496,147.27,147.26,45.88]
[1751754276906,16.50700496,147.27,147.26,240.16]
[1751754278308,13.8185573,147.27,147.26,45.88]
[1751754278607,16.53388219,147.27,147.26,240.16]
[1751754278808,16.53388105,147.27,147.26,240.16]
[1751754284408,8.81925887,147.27,147.26,240.16]
[1751754284611,16.52052614,147.27,147.26,194.28]
[1751754296516,11.53292518,147.27,147.26,194.28]
[1751754296818,16.51965321,147.27,147.26,194.28]
[1751754304527,13.8059869,147.27,147.26,194.28]
[1751754304727,16.52148675,147.27,147.26,194.28]
[1751754306127,23.31008675,147.27,147.26,194.28]
[1751754306419,23.74083795,147.27,147.24,45.88]
[1751754306727,18.88169398,147.26,147.25,194.26]
[1751754306925,16.52148675,147.26,147.25,194.26]
[1751754307525,16.52523557,147.26,147.25,194.26]
[1751754308427,21.38643018,147.26,147.25,194.26]
[1751754309127,16.52523557,147.26,147.25,194.26]
[1751754309328,23.74695973,147.26,147.25,194.26]
[1751754309830,30.53595973,147.26,147.25,194.26]
[1751754310529,27.82045988,147.26,147.25,194.26]
[1751754311733,27.82085084,147.26,147.25,194.26]
[1751754312131,30.53803174,147.26,147.25,194.26]
[1751754315234,30.53803174,147.26,147.24,45.88]
[1751754315434,16.52691662,147.25,147.24,45.88]
[1751754315734,16.52691662,147.25,147.24,240.14]
[1751754315932,16.52511904,147.25,147.24,45.88]
[1751754316138,16.52511904,147.25,147.24,240.14]
[1751754317133,11.53464219,147.25,147.24,240.14]
[1751754317338,16.52610478,147.25,147.24,240.14]
[1751754317539,16.52610478,147.25,147.24,45.88]
[1751754317841,25.67557267,147.25,147.24,45.88]
[1751754318040,30.52506799,147.25,147.24,240.14]
[1751754318942,30.52506799,147.25,147.24,45.88]
[1751754320241,25.67557267,147.25,147.24,45.88]
[1751754320938,25.67557267,147.25,147.24,240.14]
[1751754321540,25.67557267,147.25,147.24,45.88]
[1751754321741,30.53575163,147.25,147.24,45.88]
[1751754322642,6.7903,147.24,147.2,45.88]
[1751754322842,18.84336479,147.23,147.21,194.28]
[1751754323041,7.35143048,147.22,147.21,194.28]
[1751754323339,7.35143048,147.22,147.2,45.88]
[1751754323340,10.06340363,147.22,147.2,45.88]
[1751754323540,4.98908766,147.21,147.2,45.88]
[1751754323740,7.70289593,147.21,147.2,240.16]
[1751754324145,16.47853365,147.21,147.2,240.16]
[1751754326345,7.70289593,147.21,147.2,240.16]
[1751754326543,16.46522114,147.21,147.2,240.16]
[1751754327239,7.70289593,147.21,147.2,240.16]
[1751754328145,7.70289593,147.21,147.2,45.88]
[1751754328346,7.70289593,147.21,147.2,240.18]
[1751754330146,4.98908766,147.21,147.2,240.18]
[1751754331347,4.98908766,147.21,147.2,246.9718]
[1751754333748,2.35996789,147.23,147.2,246.9718]
[1751754333948,4.90882585,147.22,147.2,246.9718]
[1751754334252,9.15036789,147.23,147.2,246.9718]
[1751754334548,4.90854776,147.22,147.2,246.9718]
[1751754334751,9.15036789,147.23,147.2,246.9718]
[1751754334947,4.90869305,147.22,147.2,246.9718]
[1751754335148,9.15036789,147.23,147.2,246.9718]
[1751754335349,4.90849845,147.22,147.2,246.9718]
[1751754335650,9.15036789,147.23,147.2,246.9718]
[1751754335848,4.90844206,147.22,147.2,246.9718]
[1751754336148,9.15036789,147.23,147.2,246.9718]
[1751754336349,4.90828804,147.22,147.21,194.32]
[1751754336848,4.91893492,147.22,147.21,194.32]
[1751754352465,7.27890281,147.22,147.21,194.32]
[1751754355863,7.29669085,147.22,147.21,194.32]
[1751754356164,10.00580186,147.22,147.21,194.32]
[1751754356562,7.29669085,147.22,147.21,194.32]
[1751754357166,10.0044227,147.22,147.21,194.32]
[1751754358668,7.64445481,147.22,147.21,194.32]
[1751754359063,4.93672296,147.22,147.21,203.47126789]
[1751754359367,2.35996789,147.26,147.21,196.67996789]
[1751754359570,16.36474834,147.25,147.23,2.35996789]
[1751754359767,2.35996789,147.26,147.24,194.3]
[1751754359967,16.36474834,147.25,147.24,194.3]
[1751754363769,8.70412115,147.25,147.24,194.3]
[1751754363970,11.41356114,147.25,147.24,194.3]
[1751754364169,16.39015349,147.25,147.24,194.3]
[1751754364372,16.39035794,147.25,147.24,194.3]
[1751754366972,18.75075361,147.25,147.24,194.3]
[1751754367177,23.57730166,147.25,147.24,194.3]
[1751754367379,30.36680166,147.25,147.24,194.3]
[1751754368867,25.54025361,147.25,147.24,194.3]
[1751754369669,16.39078572,147.25,147.24,194.3]
[1751754370169,16.39078572,147.25,147.24,201.0899]
[1751754372876,16.41667387,147.25,147.24,201.0899]
[1751754373676,7.71255272,147.25,147.24,201.0899]
[1751754374076,7.71255272,147.25,147.24,203.44986789]
[1751754375278,7.71255272,147.25,147.24,201.0899]
[1751754375778,2.71457187,147.25,147.24,201.0899]
[1751754375979,7.71129828,147.25,147.24,201.0899]
[1751754376280,7.71130028,147.25,147.24,201.0899]
[1751754377285,7.71130028,147.25,147.24,203.44986789]
[1751754377484,2.35996789,147.3,147.27,6.7883]
[1751754377683,16.43154017,147.29,147.27,6.7883]
[1751754377881,16.43154017,147.28,147.27,6.7883]
[1751754378183,16.43154017,147.28,147.26,9.14876789]
[1751754378385,7.70897217,147.27,147.26,9.14876789]
[1751754378985,7.70836373,147.27,147.26,9.14876789]
[1751754379782,7.70836373,147.27,147.26,6.7888]
[1751754381183,4.99561299,147.27,147.26,6.7888]
[1751754381788,7.71034581,147.27,147.26,6.7888]
[1751754381991,7.70639906,147.27,147.26,6.7888]
[1751754382182,4.99166624,147.27,147.26,6.7888]
[1751754387391,5.01855067,147.27,147.26,6.7888]
[1751754402210,7.73072397,147.27,147.26,6.7888]
[1751754402510,5.01855067,147.27,147.26,6.7888]
[1751754404114,5.01855067,147.27,147.26,9.14876789]
[1751754405617,9.14736789,147.3,147.27,6.7884]
[1751754405816,16.50369928,147.29,147.27,200.9884]
[1751754406013,7.74630399,147.28,147.27,200.9884]
[1751754411418,16.51577776,147.28,147.27,200.9884]
[1751754412618,7.74630399,147.28,147.27,200.9884]
[1751754413312,7.74630399,147.28,147.27,203.34836789]
[1751754414616,7.75014193,147.28,147.27,203.34836789]
[1751754416216,7.75014193,147.28,147.27,200.9884]
[1751754416417,16.5180265,147.28,147.27,200.9884]
[1751754416620,16.5180265,147.28,147.27,203.34836789]
[1751754416827,5.03767341,147.28,147.27,203.34836789]
[1751754418821,5.03767341,147.28,147.27,200.9884]
[1751754419022,5.03767341,147.28,147.27,203.34836789]
[1751754420522,2.35996789,147.32,147.3,6.787]
[1751754420722,16.06326789,147.33,147.31,194.16]
[1751754420924,21.45264411,147.32,147.31,194.16]
[1751754422522,21.48074987,147.32,147.31,194.16]
[1751754428527,21.47863064,147.32,147.31,194.16]
[1751754436332,21.47721377,147.32,147.31,194.16]
[1751754437636,18.75717411,147.32,147.31,194.16]
[1751754437834,21.47722132,147.32,147.31,194.16]
[1751754440737,21.47753916,147.32,147.31,194.16]
[1751754443737,21.47859252,147.32,147.31,194.16]
[1751754444637,23.83856041,147.32,147.29,45.86]
[1751754444837,2.35996789,147.3,147.23,45.84]
[1751754445037,2.35996789,147.27,147.24,194.14]
[1751754445236,7.77965485,147.26,147.24,194.14]
[1751754445435,5.05912734,147.25,147.24,194.14]
[1751754446036,5.05912734,147.25,147.23,45.84]
[1751754446237,5.05912734,147.24,147.23,45.84]
[1751754446438,5.05912734,147.24,147.23,239.98]
[1751754446834,5.07849081,147.24,147.23,246.7701]
[1751754447232,2.35996789,147.25,147.23,52.6301]
[1751754447437,5.07876592,147.24,147.23,52.6301]
[1751754447636,5.07876592,147.24,147.23,246.7701]
[1751754449539,5.07876592,147.24,147.23,52.6301]
[1751754449741,5.07876592,147.24,147.23,246.7701]
[1751754449941,5.05258689,147.24,147.23,246.7901]
[1751754455953,5.05258689,147.24,147.23,246.8101]
[1751754456242,5.05258689,147.24,147.23,249.17006789]
[1751754457448,9.14876789,147.27,147.24,6.7899]
[1751754457647,13.86319898,147.26,147.25,194.18]
[1751754461252,13.86319898,147.26,147.25,203.32946789]
[1751754462157,4.9938905,147.26,147.25,203.32946789]
[1751754462558,4.9938905,147.26,147.25,203.32807603]
[1751754465160,4.9938905,147.26,147.25,203.32784917]
[1751754465969,4.9938905,147.26,147.25,200.9695]
[1751754466168,4.9938905,147.26,147.25,203.32784917]
[1751754466669,6.7878,147.29,147.27,6.7885]
[1751754466971,6.7878,147.29,147.28,194.32]
[1751754467268,20.67593889,147.29,147.28,194.32]
[1751754468069,26.09800755,147.29,147.28,194.32]
[1751754468272,28.80760673,147.29,147.28,194.32]
[1751754468469,26.09800755,147.29,147.28,194.32]
[1751754468873,20.67593889,147.29,147.28,194.32]
[1751754469674,5.00296094,147.29,147.28,194.32]
[1751754471072,10.43629366,147.29,147.28,194.32]
[1751754471676,5.00296094,147.29,147.28,194.32]
[1751754472174,5.00296094,147.29,147.28,201.1081]
[1751754480479,5.00296094,147.29,147.28,203.46644917]
[1751754480874,101.71018695,147.32,147.29,6.7872]
[1751754481079,22.10996321,147.31,147.29,9.14554917]
[1751754481281,10.50250284,147.3,147.29,9.14554917]
[1751754482684,5.05518068,147.3,147.29,9.14554917]
[1751754482880,5.05518068,147.3,147.29,6.7872]
[1751754483482,11.84238068,147.3,147.28,203.46624917]
[1751754483684,5.05518068,147.29,147.28,194.32]
[1751754483984,13.19732587,147.29,147.28,194.32]
[1751754484186,22.10874604,147.29,147.28,194.32]
[1751754485585,10.50228668,147.29,147.28,201.1081]
[1751754485781,5.05518068,147.29,147.28,201.1081]
[1751754488579,5.05518068,147.29,147.28,203.46644917]
[1751754488785,5.05518068,147.29,147.28,9.14644917]
[1751754488984,5.05518068,147.29,147.28,203.36644917]
[1751754492389,6.787,147.31,147.29,6.7876]
[1751754492586,10.48341503,147.3,147.29,6.7876]
[1751754494189,10.48341503,147.3,147.28,201.0079]
[1751754494389,5.04640339,147.29,147.28,201.0079]
[1751754496787,6.7872,147.3,147.28,201.0079]
[1751754497587,9.14524917,147.31,147.28,201.0079]
[1751754497990,10.50875275,147.3,147.28,201.0079]
[1751754498693,5.45058029,147.3,147.28,201.0079]
[1751754498888,6.7869,147.31,147.28,201.0079]
[1751754499092,9.14524917,147.31,147.28,201.0079]
[1751754501392,8.91948116,147.3,147.28,201.0079]
[1751754501592,11.27835756,147.29,147.26,45.84]
[1751754501794,2.3588764,147.29,147.27,194.16]
[1751754502293,8.91885709,147.28,147.27,194.16]
[1751754504394,16.67482212,147.28,147.27,194.16]
[1751754504694,19.43062573,147.28,147.27,194.16]
[1751754504893,19.43062573,147.28,147.27,200.9485]
[1751754505399,22.12484024,147.28,147.27,200.9485]
[1751754508898,22.12320216,147.28,147.27,200.9485]
[1751754512394,22.12320216,147.28,147.27,194.16]
[1751754512598,24.48248804,147.28,147.27,194.16]
[1751754513301,24.48248804,147.28,147.26,52.6288]
[1751754513492,2.35928588,147.28,147.27,194.24]
[1751754513696,24.32537838,147.28,147.27,194.24]
[1751754515001,24.32528587,147.28,147.27,194.24]
[1751754515700,21.96599999,147.28,147.27,194.24]
[1751754517796,16.5318773,147.28,147.27,194.24]
[1751754518001,21.96546246,147.28,147.27,194.24]
[1751754523810,21.9650181,147.28,147.27,194.24]
[1751754526817,11.60870798,147.28,147.27,194.24]
[1751754527112,21.95267412,147.28,147.27,194.24]
[1751754527407,16.53175792,147.28,147.27,194.24]
[1751754527613,11.60875733,147.28,147.27,194.24]
[1751754527810,21.95273785,147.28,147.27,194.24]
[1751754530121,21.96730596,147.28,147.27,194.24]
[1751754533120,21.9668531,147.28,147.27,194.24]
[1751754533325,21.9668531,147.28,147.27,201.0285]
[1751754536325,21.99479088,147.28,147.27,201.0285]
[1751754537425,21.99479088,147.28,147.27,203.38778588]
[1751754540728,21.99479088,147.28,147.27,201.0285]
[1751754542923,13.08085895,147.28,147.27,203.38778588]
[1751754545228,22.001034,147.28,147.27,203.38778588]
[1751754546234,13.08085895,147.28,147.27,203.38778588]
[1751754546531,22.00181152,147.28,147.27,203.38778588]
[1751754548229,13.08085895,147.28,147.27,203.38778588]
[1751754548834,22.01033128,147.28,147.27,203.38778588]
[1751754549132,13.08085895,147.28,147.27,203.38778588]
[1751754549329,22.00999203,147.28,147.27,203.38778588]
[1751754550234,13.08085895,147.28,147.27,203.38778588]
[1751754553137,13.0916638,147.28,147.27,203.38778588]
[1751754554937,13.0916638,147.28,147.27,201.0285]
[1751754557440,22.01802345,147.28,147.27,201.0285]
[1751754560438,14.38887154,147.28,147.27,201.0285]
[1751754561138,8.92635965,147.28,147.27,201.0285]
[1751754578249,22.02667924,147.28,147.27,201.0285]
[1751754578549,22.0204111,147.28,147.27,201.0285]
[1751754584558,22.05604378,147.28,147.27,203.38778588]
[1751754587564,19.3660824,147.28,147.27,203.38778588]
[1751754587755,22.05592285,147.28,147.27,203.38778588]
[1751754589663,22.05592285,147.28,147.27,201.0285]
[1751754591765,10.43972275,147.28,147.27,203.38778588]
[1751754592359,4.91711052,147.28,147.27,203.38778588]
[1751754593064,9.50252016,147.34,147.32,6.7862]
[1751754593268,16.99596403,147.33,147.32,194.14]
[1751754595665,16.99596403,147.33,147.32,200.9262]
[1751754600473,8.07306418,147.33,147.32,200.9262]
[1751754600667,17.01356723,147.33,147.32,200.9262]
[1751754601579,17.01546733,147.33,147.32,200.9262]
[1751754604982,21.90489994,147.33,147.32,200.9262]
[1751754605474,21.90489994,147.33,147.32,194.14]
[1751754607473,19.24379445,147.33,147.32,194.14]
[1751754607678,21.93507022,147.33,147.32,194.14]
[1751754608884,28.72087022,147.33,147.32,194.14]
[1751754609487,31.0801561,147.33,147.32,194.14]
[1751754610082,6.7865,147.32,147.3,239.94]
[1751754610278,4.88943261,147.31,147.3,239.94]
[1751754610478,4.88943261,147.31,147.3,239.96]
[1751754611982,13.82423178,147.31,147.3,239.96]
[1751754612378,22.97021766,147.31,147.3,45.84]
[1751754612578,21.53930394,147.31,147.28,194.12]
[1751754612778,2.35928588,147.29,147.28,194.12]
[1751754614785,11.293439,147.29,147.28,194.12]
[1751754616088,2.35928588,147.3,147.28,6.7881]
[1751754616286,2.35928588,147.3,147.28,200.9081]
[1751754619692,10.23060963,147.29,147.28,200.9081]
[1751754621892,12.92033589,147.29,147.28,200.9081]
[1751754622893,10.23060963,147.29,147.28,200.9081]
[1751754623497,4.88832391,147.29,147.28,200.9081]
[1751754626694,4.88832391,147.29,147.28,194.12]
[1751754627200,10.20341906,147.29,147.28,194.12]
[1751754628202,19.10364906,147.29,147.28,194.12]
[1751754629004,19.10364906,147.29,147.28,200.9081]
[1751754633103,21.78804741,147.29,147.28,200.9081]
[1751754637413,16.47295226,147.29,147.28,200.9081]
[1751754637616,21.75586207,147.29,147.28,200.9081]
[1751754640515,21.75069472,147.29,147.28,200.9081]
[1751754643416,21.75070492,147.29,147.28,200.9081]
[1751754646416,16.89568069,147.29,147.28,200.9081]
[1751754646719,21.7507298,147.29,147.28,200.9081]
[1751754646919,21.7507298,147.29,147.28,194.12]
[1751754647914,21.7507298,147.29,147.28,200.9081]
[1751754648823,21.7507298,147.29,147.28,194.12]
[1751754649420,21.74971777,147.29,147.28,194.12]
[1751754655021,21.74971777,147.29,147.28,200.9081]
[1751754655324,21.75227139,147.29,147.28,200.9081]
[1751754655621,21.7542482,147.29,147.28,200.9081]
[1751754656123,21.75469537,147.29,147.28,200.9081]
[1751754658223,19.06885439,147.29,147.28,200.9081]
[1751754658424,21.75824908,147.29,147.28,200.9081]
[1751754658726,21.75824908,147.29,147.28,6.7881]
[1751754658914,21.75824908,147.29,147.28,200.9081]
[1751754660926,8.90220681,147.29,147.28,200.9081]
[1751754661129,21.7644206,147.29,147.28,200.9081]
[1751754661330,16.90511625,147.29,147.28,200.9081]
[1751754661520,21.76514626,147.29,147.28,194.12]
[1751754665329,21.76514626,147.29,147.27,6.7883]
[1751754665626,21.76514626,147.28,147.27,6.7883]
[1751754665826,21.76514626,147.28,147.27,200.8883]
[1751754666531,16.90511625,147.28,147.27,200.8883]
[1751754666729,21.76732016,147.28,147.27,200.8883]
[1751754669529,16.45377379,147.28,147.27,200.8883]
[1751754669735,21.78265291,147.28,147.27,200.8883]
[1751754675438,16.45377379,147.28,147.27,200.8883]
[1751754675642,21.79225654,147.28,147.27,200.8883]
[1751754681451,21.80752987,147.28,147.27,200.8883]
[1751754681751,21.80752987,147.28,147.27,203.24758588]
[1751754684357,14.24068956,147.28,147.27,203.24758588]
[1751754684550,21.81343449,147.28,147.27,203.24758588]
[1751754690457,21.81282768,147.28,147.27,203.24758588]
[1751754693355,16.93603606,147.28,147.27,203.24758588]
[1751754693559,21.81426078,147.28,147.27,203.24758588]
[1751754696363,21.8136944,147.28,147.27,203.24758588]
[1751754708564,2.69621132,147.28,147.27,203.24758588]
[1751754708764,9.51779335,147.33,147.31,6.7867]
[1751754709067,9.51779335,147.33,147.32,194.08]
[1751754709264,9.14498588,147.34,147.32,194.08]
[1751754709469,2.35928588,147.34,147.32,194.08]
[1751754709876,9.14508588,147.33,147.32,194.08]
[1751754715375,6.7858,147.33,147.32,194.08]
[1751754717183,9.14508588,147.33,147.32,194.08]
[1751754717385,2.35928588,147.33,147.3,239.88]
[1751754717584,2.35928588,147.32,147.3,239.88]
[1751754717785,2.35928588,147.32,147.3,194.06]
[1751754718179,9.14578588,147.32,147.3,194.06]
[1751754718380,2.35928588,147.33,147.3,194.06]
[1751754718581,11.87707923,147.34,147.3,194.06]
[1751754719585,6.786,147.33,147.31,6.7866]
[1751754719981,2.35928588,147.34,147.31,6.7866]
[1751754720184,9.14478588,147.34,147.31,6.7866]
[1751754720580,18.75235524,147.33,147.31,6.7866]
[1751754720781,21.38471976,147.32,147.31,6.7866]
[1751754722493,21.38317742,147.32,147.31,6.7866]
[1751754724191,13.65882011,147.32,147.31,6.7866]
[1751754724393,85.24317357,147.37,147.34,6.7849]
[1751754724592,5.08848421,147.36,147.35,194.04]
[1751754724992,5.08848421,147.36,147.35,200.8249]
[1751754725192,5.08848491,147.36,147.35,200.8249]
[1751754726693,5.08848491,147.36,147.35,203.18418588]
[1751754727083,5.08848491,147.36,147.35,248.98418588]
[1751754729494,16.11778588,147.42,147.38,6.7832]
[1751754729697,5.00919111,147.41,147.39,194.24]
[1751754729885,5.00919111,147.4,147.39,194.24]
[1751754730083,5.00919111,147.4,147.39,196.59928588]
[1751754730993,5.00919111,147.4,147.39,203.38218588]
[1751754731295,4.96811458,147.4,147.39,203.38218588]
[1751754736304,12.37648839,147.4,147.39,203.38218588]
[1751754736800,12.42285186,147.4,147.39,203.38218588]
[1751754739098,12.41088675,147.4,147.39,203.38218588]
[1751754739403,4.82602514,147.4,147.39,203.38218588]
[1751754740305,4.82602514,147.4,147.39,201.0229]
[1751754740504,4.82602514,147.4,147.39,203.38218588]
[1751754741008,4.82602514,147.4,147.39,249.16218588]
[1751754743114,9.14058588,147.43,147.39,249.16218588]
[1751754743406,7.39349894,147.42,147.39,249.16218588]
[1751754743610,4.8402925,147.41,147.39,249.16218588]
[1751754743805,9.14058588,147.43,147.39,249.16218588]
[1751754744005,7.391818,147.42,147.39,249.16218588]
[1751754744305,4.83919204,147.41,147.39,249.16218588]
[1751754744507,9.14058588,147.43,147.39,249.16218588]